bitfinex-derivatives/quotes_SOLF0:USTF0_20250914
["timestamp","ask_amount","ask_price","bid_price","bid_amount"]
[1757865410260,1.08511526,243.62,243.49,5.8]
[1757865415157,1.08511526,243.61,243.49,5.8]
[1757865415754,6.41,243.6,243.49,5.8]
[1757865415953,6.41,243.6,243.5,5.8]
[1757865417160,6.41,243.6,243.5,9.20935597]
[1757865417365,6.41,243.6,243.51,5.8]
[1757865418164,6.41,243.6,243.51,9.20935597]
[1757865419366,7.49511526,243.6,243.51,9.20935597]
[1757865420367,7.49511526,243.6,243.52,3.40935597]
[1757865421069,7.49511526,243.6,243.51,9.20935597]
[1757865421263,7.49511526,243.6,243.52,3.40935597]
[1757865422872,7.49511526,243.6,243.53,5.8]
[1757865423172,1.08511526,243.63,243.53,9.20935597]
[1757865423473,7.49511526,243.63,243.54,9.20935597]
[1757865424272,7.49511526,243.63,243.55,3.40935597]
[1757865427070,21.44,243.67,243.54,3.40935597]
[1757865427071,1.08511526,243.6,243.54,3.40935597]
[1757865427276,6.41,243.59,243.54,3.40935597]
[1757865428074,6.41,243.6,243.54,3.40935597]
[1757865428475,6.41,243.6,243.52,3.40935597]
[1757865428673,6.41,243.6,243.51,3.40935597]
[1757865429774,1.69891811,243.57,243.51,3.40935597]
[1757865430276,6.41,243.56,243.51,3.40935597]
[1757865430475,6.41,243.66,243.51,3.40935597]
[1757865430672,6.41,243.56,243.51,3.40935597]
[1757865431074,1.69891811,243.57,243.51,3.40935597]
[1757865431274,6.64,243.56,243.51,3.40935597]
[1757865431578,1.69891811,243.57,243.51,3.40935597]
[1757865431777,6.64,243.56,243.51,3.40935597]
[1757865432567,1.69891811,243.57,243.51,3.40935597]
[1757865432768,6.64,243.56,243.49,3.40935597]
[1757865435674,1.69891811,243.58,243.48,8.40935597]
[1757865435880,6.64,243.56,243.48,8.40935597]
[1757865436576,53.45891811,243.6,243.5,5.8]
[1757865436779,73.85891811,243.6,243.5,5.8]
[1757865437987,73.85891811,243.6,243.49,3.40935597]
[1757865438180,6.64,243.55,243.48,8.40935597]
[1757865438479,6.64,243.55,243.48,14.20935597]
[1757865440174,28.58,243.59,243.49,5.8]
[1757865443280,50.04,243.59,243.49,5.8]
[1757865445085,6.64,243.59,243.49,5.8]
[1757865445385,8.33891811,243.59,243.49,9.20935597]
[1757865445986,6.64,243.59,243.52,3.40935597]
[1757865446186,6.64,243.59,243.52,9.20935597]
[1757865446483,8.33891811,243.63,243.53,9.20935597]
[1757865447185,1.69891811,243.63,243.53,9.20935597]
[1757865447381,6.64,243.62,243.53,9.20935597]
[1757865447586,6.64,243.62,243.53,5.8]
[1757865449782,6.64,243.62,243.51,3.40935597]
[1757865450690,6.64,243.62,243.5,3.40935597]
[1757865452187,6.64,243.58,243.5,3.40935597]
[1757865452591,6.64,243.58,243.5,5.8]
[1757865452792,6.64,243.58,243.5,9.20935597]
[1757865457490,6.64,243.62,243.51,5.8]
[1757865457696,6.64,243.62,243.52,5.8]
[1757865459793,6.64,243.58,243.5,3.40935597]
[1757865460801,1.69891811,243.59,243.48,14.20935597]
[1757865461303,6.45,243.54,243.48,5.0]
[1757865463304,6.45,243.54,243.48,8.40935597]
[1757865463505,6.45,243.59,243.49,5.81]
[1757865465303,6.45,243.55,243.48,5.0]
[1757865473709,6.45,243.55,243.49,5.8]
[1757865480417,6.81,243.62,243.49,3.42038575]
[1757865480620,6.81,243.62,243.5,9.22038575]
[1757865481120,22.03471114,243.63,243.5,9.22038575]
[1757865481525,6.81,243.62,243.5,9.22038575]
[1757865482020,6.81,243.62,243.5,5.8]
[1757865482626,1.69891811,243.6,243.5,5.8]
[1757865482823,6.81,243.59,243.48,5.0]
[1757865483023,1.69891811,243.56,243.48,5.0]
[1757865483322,6.81,243.55,243.48,5.0]
[1757865485423,1.69891811,243.56,243.48,5.0]
[1757865485626,275.78,243.69,243.54,5.8]
[1757865485831,8.50891811,243.67,243.56,5.8]
[1757865486131,6.81,243.66,243.56,5.8]
[1757865487828,1.08710842,243.6,243.56,5.8]
[1757865488224,1.08710842,243.6,243.53,3.42038575]
[1757865488422,1.08710842,243.6,243.52,9.22038575]
[1757865488627,1.08710842,243.57,243.51,3.42038575]
[1757865488928,1.08710842,243.57,243.51,9.22038575]
[1757865489328,1.08710842,243.57,243.52,5.8]
[1757865489526,1.08710842,243.6,243.52,5.8]
[1757865489929,1.08710842,243.6,243.53,5.8]
[1757865490228,1.08710842,243.6,243.53,9.22038575]
[1757865491930,1.08710842,243.6,243.54,5.8]
[1757865492934,1.08710842,243.63,243.54,5.8]
[1757865499538,282.42,243.69,243.54,4.50749417]
[1757865499732,1.08710842,243.66,243.58,5.8]
[1757865500333,1.08710842,243.66,243.59,5.8]
[1757865501438,283.50710842,243.69,243.59,9.22038575]
[1757865501638,283.50710842,243.69,243.54,1.08710842]
[1757865501639,283.50710842,243.69,243.6,9.22038575]
[1757865501849,7.72710842,243.69,243.61,5.8]
[1757865502638,1.08710842,243.71,243.61,9.22038575]
[1757865502845,1.08710842,243.72,243.62,5.8]
[1757865503141,100.84,243.77,243.6,1.08710842]
[1757865503142,1.08710842,243.75,243.63,3.42038575]
[1757865503337,1.08710842,243.75,243.64,5.8]
[1757865505242,1.08710842,243.77,243.67,5.8]
[1757865505833,1.08710842,243.77,243.68,5.8]
[1757865506034,1.08710842,243.8,243.68,5.8]
[1757865506436,6.64,243.79,243.68,5.8]
[1757865507743,6.64,243.76,243.68,5.8]
[1757865508142,6.64,243.73,243.64,5.8]
[1757865510850,1.08710842,243.71,243.64,5.8]
[1757865512047,6.64,243.73,243.64,5.8]
[1757865512248,1.08710842,243.71,243.64,5.8]
[1757865515553,6.64,243.7,243.64,5.8]
[1757865515857,6.64,243.67,243.64,5.8]
[1757865516348,1.08710842,243.68,243.64,5.8]
[1757865516655,7.72710842,243.68,243.64,5.8]
[1757865517256,7.72710842,243.68,243.59,1.08710842]
[1757865517456,7.72710842,243.68,243.6,5.8]
[1757865521962,6.57,243.64,243.56,5.79]
[1757865524466,1.08710842,243.68,243.58,5.79]
[1757865525066,6.57,243.67,243.58,5.79]
[1757865527869,6.57,243.64,243.54,5.79]
[1757865528462,6.57,243.61,243.54,5.79]
[1757865537275,7.63710842,243.65,243.54,5.79]
[1757865537477,6.55,243.65,243.57,5.79]
[1757865539975,6.55,243.7,243.57,5.79]
[1757865540177,6.55,243.7,243.6,5.79]
[1757865543979,7.63710842,243.7,243.6,5.79]
[1757865547383,6.55,243.7,243.62,1.08710842]
[1757865547583,6.55,243.7,243.63,5.79]
[1757865548680,7.63710842,243.7,243.61,1.08710842]
[1757865548879,7.63710842,243.7,243.59,5.79]
[1757865549080,7.63710842,243.7,243.58,1.08710842]
[1757865549478,6.55,243.66,243.58,1.08710842]
[1757865549885,6.55,243.66,243.57,3.41148865]
[1757865551175,6.55,243.66,243.56,3.41148865]
[1757865551376,1.69784542,243.67,243.55,9.20148865]
[1757865551781,6.52,243.66,243.55,9.20148865]
[1757865552278,6.52,243.66,243.55,5.79]
[1757865556281,6.52,243.66,243.55,9.20148865]
[1757865556588,6.52,243.66,243.55,5.79]
[1757865557286,6.52,243.66,243.55,9.20148865]
[1757865557584,1.69784542,243.67,243.55,9.20148865]
[1757865557780,6.52,243.66,243.55,9.20148865]
[1757865557980,1.69784542,243.67,243.55,9.20148865]
[1757865558189,6.52,243.66,243.55,5.79]
[1757865558782,1.69784542,243.72,243.55,9.20148865]
[1757865558988,6.52,243.66,243.56,5.8]
[1757865560689,6.52,243.66,243.56,3.41148865]
[1757865560981,6.52,243.66,243.57,5.8]
[1757865561382,6.52,243.66,243.57,9.21148865]
[1757865561990,6.52,243.66,243.58,3.41148865]
[1757865562289,6.52,243.66,243.59,5.8]
[1757865563687,6.52,243.66,243.59,9.21148865]
[1757865567095,6.52,243.66,243.6,3.41148865]
[1757865567692,6.52,243.7,243.61,5.8]
[1757865567887,6.52,243.7,243.61,9.21148865]
[1757865570203,6.52,243.7,243.61,10.90933407]
[1757865571504,6.52,243.7,243.62,5.8]
[1757865575401,275.76,243.78,243.62,5.8]
[1757865575702,6.52,243.76,243.64,9.21148865]
[1757865575902,6.52,243.76,243.65,5.8]
[1757865576806,6.52,243.76,243.67,5.8]
[1757865578002,6.52,243.76,243.67,3.41148865]
[1757865578302,6.52,243.76,243.68,5.8]
[1757865580706,6.52,243.76,243.69,5.8]
[1757865590013,4.5338828,243.9,243.69,5.8]
[1757865590217,6.55,243.8,243.69,5.8]
[1757865590411,6.55,243.8,243.69,1.69784542]
[1757865590618,6.55,243.8,243.7,9.21148865]
[1757865590912,6.55,243.8,243.71,5.8]
[1757865591113,4.5338828,243.95,243.71,5.8]
[1757865591419,6.55,243.93,243.76,7.49784542]
[1757865592013,6.55,243.93,243.77,5.8]
[1757865592413,6.55,243.94,243.78,5.8]
[1757865593119,6.55,243.94,243.81,7.49784542]
[1757865593818,6.55,243.94,243.81,5.8]
[1757865596216,6.55,243.91,243.81,5.8]
[1757865599821,6.39,243.87,243.73,5.78]
[1757865602424,57.3892,243.84,243.78,0.03016454]
[1757865602624,57.393,243.82,243.78,0.03016454]
[1757865603122,6.39,243.81,243.78,0.03016454]
[1757865603325,3.6908,243.73,243.72,2.139e-05]
[1757865603618,57.4136,243.73,243.69,4.52207581]
[1757865603826,3.6912,243.71,243.69,4.52207581]
[1757865604823,3.6917,243.67,243.66,8.952e-05]
[1757865605028,0.02819755,243.72,243.56,24.56]
[1757865605428,3.6912,243.71,243.58,3.6931]
[1757865605724,0.02991729,243.68,243.56,24.56]
[1757865606224,0.02991729,243.68,243.57,3.6931]
[1757865606630,0.02991729,243.68,243.56,24.56]
[1757865607024,3.6921,243.65,243.56,24.56]
[1757865607626,3.6924,243.63,243.51,3.694]
[1757865607929,3.6924,243.63,243.52,100.7]
[1757865607930,0.03132858,243.63,243.52,100.7]
[1757865609233,0.03132858,243.63,243.53,3.6938]
[1757865609730,0.03132858,243.63,243.52,100.7]
[1757865610129,0.03132858,243.63,243.5,3.6942]
[1757865610336,0.03132858,243.63,243.53,100.7]
[1757865612530,6.56,243.62,243.49,275.58]
[1757865612829,0.03132858,243.63,243.49,275.58]
[1757865612830,6.56,243.61,243.49,376.3]
[1757865613632,0.02625921,243.57,243.49,376.3]
[1757865614428,6.58625921,243.57,243.49,376.3]
[1757865614831,6.58625921,243.57,243.49,100.72]
[1757865616339,6.56,243.56,243.48,5.0]
[1757865622536,0.02625921,243.57,243.48,5.0]
[1757865625648,6.58625921,243.57,243.48,5.0]
[1757865628944,19.00399106,243.57,243.48,5.0]
[1757865629447,6.56,243.55,243.48,5.0]
[1757865630550,68.6,243.55,243.48,5.0]
[1757865630742,6.56,243.55,243.48,5.0]
[1757865630944,97.56,243.55,243.48,5.0]
[1757865634743,6.72,243.56,243.48,5.0]
[1757865634948,6.72,243.54,243.48,5.0]
[1757865635247,6.72,243.52,243.48,5.0]
[1757865635754,6.72,243.56,243.48,5.0]
[1757865635944,71.38,243.55,243.48,5.0]
[1757865636144,6.72,243.54,243.48,5.0]
[1757865637750,37.84625921,243.57,243.48,5.0]
[1757865638152,0.02625921,243.57,243.48,5.0]
[1757865646662,6.91,243.56,243.48,5.0]
[1757865649072,0.02625921,243.57,243.48,5.0]
[1757865653577,6.91,243.56,243.48,5.0]
[1757865665094,7.09,243.54,243.48,5.0]
[1757865665793,72.46,243.53,243.48,5.0]
[1757865665993,89.64,243.53,243.48,5.0]
[1757865666191,100.8,243.53,243.48,5.0]
[1757865666395,7.09,243.52,243.48,5.0]
[1757865666596,100.8,243.53,243.48,5.0]
[1757865666893,7.09,243.56,243.48,5.0]
[1757865667089,9.6,243.55,243.48,5.0]
[1757865667286,7.09,243.56,243.48,5.0]
[1757865667596,7.09,243.54,243.48,5.0]
[1757865667996,7.09,243.52,243.48,5.0]
[1757865668192,7.09,243.56,243.48,5.0]
[1757865668397,0.71485061,243.54,243.48,5.0]
[1757865668696,7.09,243.53,243.48,5.0]
[1757865669097,48.86,243.52,243.48,5.0]
[1757865669694,7.09,243.5,243.48,5.0]
[1757865669891,57.4,243.51,243.48,5.0]
[1757865670092,7.09,243.5,243.48,5.0]
[1757865670292,57.4,243.51,243.48,5.0]
[1757865670690,56.24,243.51,243.48,5.0]
[1757865670893,7.09,243.53,243.48,5.0]
[1757865671097,8.44,243.52,243.48,5.0]
[1757865671295,6.85,243.5,243.48,5.0]
[1757865671694,0.71485061,243.54,243.48,5.0]
[1757865671889,31.12,243.53,243.48,5.0]
[1757865672398,6.85,243.52,243.48,5.0]
[1757865673000,64.59,243.52,243.48,5.02]
[1757865673396,6.85,243.51,243.48,5.02]
[1757865673601,6.85,243.51,243.48,5.0]
[1757865674398,0.02633651,243.53,243.48,5.0]
[1757865675205,0.02633651,243.53,243.49,0.02]
[1757865675396,0.02633651,243.53,243.48,5.0]
[1757865675600,0.02633651,243.53,243.49,0.02]
[1757865676103,0.02633651,243.53,243.48,5.0]
[1757865676299,0.02633651,243.53,243.49,0.02]
[1757865677295,0.02633651,243.53,243.48,5.0]
[1757865677499,0.02633651,243.53,243.49,0.02]
[1757865679407,0.02633651,243.53,243.48,5.0]
[1757865679708,0.02633651,243.53,243.49,0.02]
[1757865680010,0.00633651,243.53,243.51,0.02]
[1757865680300,0.00633651,243.53,243.52,3.44004077]
[1757865680503,0.00633651,243.53,243.51,4.94853888]
[1757865680711,0.00633651,243.53,243.5,6.8121572]
[1757865681099,0.00633651,243.53,243.51,4.57151679]
[1757865681400,0.00633651,243.53,243.48,11.8121572]
[1757865681401,0.00633651,243.53,243.5,4.57151679]
[1757865681804,0.00633651,243.53,243.51,4.57151679]
[1757865682203,0.00633651,243.53,243.52,0.42]
[1757865683902,0.00633651,243.53,243.52,4.99151679]
[1757865684401,0.00633651,243.53,243.52,4.57151679]
[1757865685211,0.00633651,243.53,243.5,4.57151679]
[1757865685908,0.00633651,243.53,243.51,3.42627392]
[1757865686103,0.00633651,243.53,243.48,9.57151679]
[1757865686104,0.00633651,243.53,243.52,3.42627392]
[1757865686607,0.00633651,243.53,243.51,3.42627392]
[1757865687507,0.00633651,243.53,243.5,3.42627392]
[1757865689208,0.00633651,243.53,243.51,3.42627392]
[1757865690217,0.00633651,243.53,243.52,3.42627392]
[1757865691206,0.00633651,243.53,243.52,3.84627392]
[1757865692307,0.00633651,243.53,243.48,5.0]
[1757865692308,0.00633651,243.53,243.51,3.42627392]
[1757865693607,0.00633651,243.53,243.5,3.42627392]
[1757865693914,6.85633651,243.53,243.48,8.42627392]
[1757865694413,0.00633651,243.53,243.48,8.42627392]
[1757865694611,0.00633651,243.53,243.48,5.0]
[1757865700614,0.00633651,243.53,243.48,8.42627392]
[1757865701012,0.00633651,243.53,243.48,5.0]
[1757865708724,0.00633651,243.53,243.48,8.42627392]
[1757865709423,0.00633651,243.53,243.5,3.42627392]
[1757865711531,0.00633651,243.53,243.49,3.42627392]
[1757865712431,0.00633651,243.53,243.5,3.42627392]
[1757865715330,0.00633651,243.53,243.5,4.57151679]
[1757865716338,0.00633651,243.53,243.51,4.57151679]
[1757865717128,0.00633651,243.53,243.52,4.57151679]
[1757865717435,0.00633651,243.53,243.5,10.5063572]
[1757865717833,0.00633651,243.53,243.52,3.694]
[1757865719627,0.00633651,243.53,243.52,4.114]
[1757865720236,6.69,243.65,243.54,4.18736349]
[1757865720430,275.84,243.7,243.6,3.4327528]
[1757865720729,6.56,243.69,243.6,3.4327528]
[1757865720934,6.56,243.69,243.61,3.4327528]
[1757865722736,6.56,243.69,243.59,3.4327528]
[1757865722933,6.56,243.69,243.61,3.4327528]
[1757865723139,6.56,243.69,243.62,3.4327528]
[1757865723340,6.56,243.69,243.63,3.4327528]
[1757865724238,6.56,243.69,243.62,3.4327528]
[1757865724439,6.56,243.69,243.6,3.4327528]
[1757865724839,6.56,243.69,243.61,3.42921212]
[1757865725340,6.56,243.69,243.6,3.42921212]
[1757865725539,6.56,243.69,243.61,3.42921212]
[1757865725747,6.56,243.69,243.6,3.42921212]
[1757865725942,6.56,243.69,243.61,3.42921212]
[1757865726345,6.56,243.69,243.6,3.42921212]
[1757865728346,6.56,243.69,243.6,3.42552453]
[1757865728847,6.56,243.69,243.59,3.42552453]
[1757865729745,6.56,243.69,243.52,24.3]
[1757865729746,6.56,243.69,243.6,3.42552453]
[1757865730852,20.27429304,243.77,243.61,3.42552453]
[1757865731052,6.56,243.76,243.61,3.42552453]
[1757865731952,6.56,243.76,243.62,3.42552453]
[1757865732453,6.56,243.76,243.61,3.42552453]
[1757865732850,6.56,243.76,243.62,3.42552453]
[1757865733052,6.56,243.76,243.63,3.42552453]
[1757865733754,6.56,243.76,243.61,3.42552453]
[1757865735455,6.56,243.76,243.6,3.42552453]
[1757865735652,6.56,243.76,243.61,3.42552453]
[1757865736056,6.56,243.76,243.62,3.42552453]
[1757865737158,6.56,243.76,243.62,7.11802453]
[1757865739557,6.56,243.76,243.64,3.42552453]
[1757865739762,6.56,243.76,243.6,4.57700373]
[1757865739763,6.56,243.76,243.65,3.42552453]
[1757865742762,6.73,243.81,243.68,3.6915]
[1757865743158,6.73,243.81,243.68,7.11702453]
[1757865743662,6.73,243.81,243.68,3.6915]
[1757865744364,6.73,243.81,243.7,3.6912]
[1757865745059,6.42,243.92,243.72,7.11642453]
[1757865745366,6.73,243.91,243.73,3.42552453]
[1757865746068,6.73,243.91,243.73,7.11632453]
[1757865746469,6.73,243.91,243.73,3.6908]
[1757865746666,6.73,243.91,243.73,7.11632453]
[1757865747460,6.73,243.91,243.75,3.6905]
[1757865749965,6.73,243.91,243.77,3.6902]
[1757865750665,4.56470013,244.12,243.75,3.42552453]
[1757865750870,317.0,244.31,243.86,3.42552453]
[1757865750871,6.73,244.16,243.86,3.42552453]
[1757865751061,0.71336326,244.12,243.86,3.42552453]
[1757865751267,0.71336326,244.12,243.86,7.11432453]
[1757865751470,6.73,244.11,243.84,3.42552453]
[1757865751665,6.73,244.11,243.85,100.96]
[1757865751861,0.71336326,244.12,243.85,104.6489]
[1757865752062,0.71336326,244.12,243.85,3.6889]
[1757865752268,6.73,244.11,243.86,100.96]
[1757865752662,0.71336326,244.12,243.86,100.96]
[1757865752876,2.26,244.15,243.86,100.96]
[1757865753167,6.73,244.14,243.86,100.96]
[1757865753472,2.9732463,244.15,243.86,12.31]
[1757865753770,2.9732463,244.15,243.82,275.6]
[1757865753771,6.73,244.14,243.9,3.42552453]
[1757865753972,6.73,244.14,243.91,3.42552453]
[1757865754266,6.73,244.14,243.96,3.6873]
[1757865754471,6.73,244.14,243.97,11.0]
[1757865754668,6.73,244.14,243.98,3.6866]
[1757865755472,6.73,244.14,243.97,11.0]
[1757865755473,6.73,244.14,243.99,18.06]
[1757865755672,6.73,244.14,244.0,18.06]
[1757865756475,6.73,244.14,244.01,23.28]
[1757865756774,6.73,244.22,244.02,27.3]
[1757865756969,6.73,244.22,244.0,3.6862]
[1757865757368,6.73,244.22,243.99,12.30144184]
[1757865757369,6.73,244.21,244.02,3.686]
[1757865757674,6.73,244.21,244.01,101.02]
[1757865757874,6.73,244.21,244.04,3.6856]
[1757865758073,6.73,244.21,244.05,18.42]
[1757865758274,6.73,244.21,244.04,3.6856]
[1757865758567,6.73,244.21,244.05,19.2]
[1757865758772,6.73,244.21,244.04,3.6856]
[1757865758975,6.73,244.21,243.99,12.12672353]
[1757865758976,6.73,244.21,244.06,3.6854]
[1757865759175,6.73,244.21,244.07,36.96]
[1757865759377,6.73,244.21,243.99,24.43672353]
[1757865759567,6.73,244.21,244.04,3.6856]
[1757865760263,6.73,244.32,244.01,12.31]
[1757865760466,6.73,244.32,244.02,100.98]
[1757865760665,19.31992457,244.33,244.03,12.31]
[1757865761071,6.73,244.32,244.08,3.685]
[1757865761274,6.71,244.32,244.05,12.31]
[1757865761768,6.71,244.32,244.06,41.58]
[1757865761966,6.71,244.32,244.03,12.31]
[1757865762170,6.71,244.32,244.14,3.6842]
[1757865762370,6.71,244.32,244.15,101.04]
[1757865763477,0.71257448,244.41,244.16,101.02]
[1757865763478,6.71,244.4,244.16,101.02]
[1757865763673,0.71257448,244.41,244.16,101.02]
[1757865764177,6.71,244.4,244.16,101.02]
[1757865764578,6.71,244.4,244.09,3.6849]
[1757865764880,6.71,244.4,244.1,1.84]
[1757865766180,6.71,244.4,244.11,3.6846]
[1757865766680,0.71257448,244.41,244.12,2.76]
[1757865766875,6.71,244.4,244.12,2.76]
[1757865767477,0.71257448,244.41,244.0,62.0]
[1757865767980,6.71,244.4,244.01,1.14]
[1757865768285,6.71,244.4,244.06,3.6853]
[1757865768783,6.71,244.4,244.07,1.84]
[1757865769180,6.71,244.4,244.03,278.8659]
[1757865769377,0.71257448,244.41,244.03,278.8659]
[1757865770084,13.02257448,244.41,244.04,100.96]
[1757865770384,6.71,244.4,244.05,3.6855]
[1757865770581,6.71,244.4,244.06,100.96]
[1757865770780,0.71257448,244.41,244.06,100.96]
[1757865770979,6.71,244.4,244.07,55.92]
[1757865771182,6.71,244.4,244.07,59.6053]
[1757865771485,0.71257448,244.41,244.07,59.6053]
[1757865771683,6.71,244.4,244.03,278.8658]
[1757865771882,6.71,244.4,244.04,100.94]
[1757865772285,0.71257448,244.41,244.04,100.94]
[1757865772576,0.71257448,244.41,244.03,278.8658]
[1757865772781,0.71257448,244.41,244.04,100.92]
[1757865772982,6.71,244.4,244.04,100.92]
[1757865773387,19.02,244.39,244.03,275.18]
[1757865773584,6.71,244.37,244.04,100.9]
[1757865773777,275.16,244.36,244.04,100.9]
[1757865773982,275.16,244.36,244.05,51.5]
[1757865774185,6.71,244.34,244.02,25.78]
[1757865774377,12.31,244.35,243.97,3.6868]
[1757865774378,6.71,244.32,243.97,3.6868]
[1757865774577,113.23,244.33,243.96,275.16]
[1757865774780,6.71,244.32,243.97,100.96]
[1757865775286,113.23,244.33,243.97,100.96]
[1757865775486,113.23,244.33,243.98,100.96]
[1757865775880,6.71,244.32,244.13,0.02693559]
[1757865776385,113.23,244.33,243.96,287.54189251]
[1757865776588,6.71,244.32,244.2,0.02790669]
[1757865776792,6.71,244.15,243.97,100.94]
[1757865776987,6.71,244.15,243.98,100.94]
[1757865777186,6.71,244.15,243.99,100.94]
[1757865777589,6.71,244.15,243.96,287.54189251]
[1757865777790,6.71,244.15,243.97,100.92]
[1757865777989,0.03062862,244.08,243.97,100.92]
[1757865778193,0.03062862,244.08,243.98,100.92]
[1757865781693,0.03062862,244.08,243.96,287.54189251]
[1757865781892,0.03062862,244.08,244.02,1.08232512]
[1757865782389,0.03062862,244.08,244.03,100.92]
[1757865783298,0.03062862,244.08,244.02,1.08232512]
[1757865784001,0.03062862,244.08,244.02,100.9]
[1757865785101,0.03062862,244.08,244.02,101.98232512]
[1757865785296,0.03062862,244.08,244.06,1.08232512]
[1757865785504,0.03062862,244.08,244.07,1.08232512]
[1757865787699,0.03062862,244.08,244.07,18.84232512]
[1757865788202,6.84,244.21,244.07,18.84232512]
[1757865788394,6.84,244.21,244.17,1.08232512]
[1757865788593,530.71257448,244.41,244.2,1.08232512]
[1757865788594,6.84,244.3,244.2,1.08232512]
[1757865788795,6.84,244.27,244.18,1.08232512]
[1757865789399,6.84,244.27,244.2,0.02815788]
[1757865790505,6.84,244.27,244.21,1.08232512]
[1757865791506,6.84,244.27,244.2,1.110483]
[1757865791900,6.84,244.27,244.2,0.02815788]
[1757865792807,6.84,244.27,244.23,1.08232512]
[1757865793306,6.67,244.33,244.23,1.08232512]
[1757865793700,6.67,244.33,244.18,1.68903708]
[1757865794106,6.67,244.33,244.26,0.02798651]
[1757865794606,6.67,244.33,244.2,1.68903708]
[1757865794809,6.67,244.33,244.27,0.02973491]
[1757865796205,6.67,244.4,244.29,1.68903708]
[1757865796906,6.67,244.4,244.32,0.02865249]
[1757865797205,6.67,244.45,244.32,0.02865249]
[1757865797507,6.67,244.45,244.32,1.71768957]
[1757865797808,6.67,244.45,244.32,1.68903708]
[1757865798009,6.67,244.45,244.36,0.02908837]
[1757865798801,6.67,244.57,244.36,0.42908837]
[1757865799103,6.67,244.57,244.36,0.02908837]
[1757865799304,6.67,244.57,244.37,3.36160059]
[1757865799506,6.67,244.57,244.49,1.68903708]
[1757865799710,6.67,244.57,244.44,1.71691201]
[1757865799711,6.67,244.57,244.45,4.43195535]
[1757865800012,6.67,244.68,244.48,4.43195535]
[1757865800204,6.67,244.68,244.49,0.02596315]
[1757865800409,6.67,244.66,244.49,0.02596315]
[1757865800606,15.86,244.65,244.48,4.43195535]
[1757865800801,6.67,244.66,244.55,0.02801183]
[1757865801107,6.67,244.64,244.55,0.02801183]
[1757865801312,6.67,244.64,244.4,3.36160059]
[1757865801313,6.67,244.64,244.4,0.02]
[1757865801510,6.67,244.62,244.4,0.02]
[1757865802310,6.67,244.6,244.4,0.02]
[1757865802609,6.67,244.52,244.4,0.02]
[1757865807221,6.67,244.52,244.36,144.76850946]
[1757865807408,6.67,244.51,244.37,0.02]
[1757865807913,0.03044641,244.46,244.37,0.02]
[1757865808625,0.03044641,244.46,244.38,0.02]
[1757865808815,0.03044641,244.46,244.4,0.02]
[1757865810121,0.03044641,244.46,244.41,0.02]
[1757865810310,0.03044641,244.46,244.42,0.02]
[1757865810518,0.03044641,244.46,244.42,0.4]
[1757865810519,0.01044641,244.46,244.42,0.4]
[1757865810720,0.01044641,244.46,244.43,0.4]
[1757865811020,0.01044641,244.46,244.41,4.43195535]
[1757865811314,6.67,244.61,244.45,3.6796]
[1757865811513,6.67,244.72,244.47,4.43195535]
[1757865811715,0.71163461,244.73,244.48,26.16]
[1757865811917,6.67,244.72,244.48,29.8391]